bitfinex/quotes_BTCUSD_20250225
["timestamp","ask_amount","ask_price","bid_price","bid_amount"]
[1740516568978,0.02460003,88406.0,88395.0,0.01454085]
[1740516569192,0.3,88406.0,88397.0,0.01454085]
[1740516569388,0.226239,88402.0,88397.0,0.01454085]
[1740516569661,0.16968,88402.0,88397.0,0.01454085]
[1740516569796,0.226236,88403.0,88397.0,0.01454085]
[1740516570006,0.55158285,88406.0,88397.0,0.01454085]
[1740516570215,0.169686,88399.0,88397.0,0.01454085]
[1740516570563,0.02535385,88406.0,88397.0,0.01454085]
[1740516570871,0.169675,88405.0,88397.0,0.01454085]
[1740516571224,0.22622,88410.0,88397.0,0.01454085]
[1740516571395,0.169677,88403.0,88397.0,0.01454085]
[1740516571596,0.22623,88406.0,88397.0,0.01554085]
[1740516571799,0.02424538,88406.0,88397.0,0.01654085]
[1740516572205,0.16980352,88404.0,88397.0,0.01654085]
[1740516572444,0.00012652,88404.0,88397.0,0.01654085]
[1740516572700,0.226237,88403.0,88397.0,0.01654085]
[1740516572938,0.169684,88400.0,88397.0,0.01654085]
[1740516573141,0.169679,88402.0,88397.0,0.01654085]
[1740516573341,0.16980152,88404.0,88397.0,0.01654085]
[1740516573572,0.00012652,88404.0,88397.0,0.01654085]
[1740516573734,0.00012652,88404.0,88398.0,0.3241]
[1740516573917,0.00012652,88404.0,88403.0,0.26171785]
[1740516574134,0.00012652,88404.0,88403.0,0.37546538]
[1740516574603,0.00012652,88404.0,88403.0,0.69956538]
[1740516574764,0.15371116,88464.0,88426.0,0.04728884]
[1740516574943,0.3,88437.0,88426.0,0.04728884]
[1740516575150,0.16963,88428.0,88426.0,0.04728884]
[1740516575348,0.169631,88427.0,88426.0,0.04728884]
[1740516576132,0.02444453,88438.0,88428.0,0.04728884]
[1740516576291,0.02444453,88438.0,88427.0,0.04728884]
[1740516576292,0.02457102,88438.0,88427.0,0.04728884]
[1740516576501,0.169627,88429.0,88428.0,0.04728884]
[1740516576704,0.169627,88429.0,88426.0,0.001]
[1740516576705,0.469631,88427.0,88426.0,0.001]
[1740516576905,0.169683,88400.0,88399.0,0.3241]
[1740516577051,0.169696,88393.0,88389.0,0.3241]
[1740516577253,0.3,88412.0,88395.0,0.04728884]
[1740516577453,0.3,88415.0,88389.0,0.3241]
[1740516577454,0.3,88421.0,88400.0,0.21696984]
[1740516577667,0.226198,88418.0,88400.0,0.04728884]
[1740516577881,0.3,88405.0,88402.0,0.01454085]
[1740516578707,0.3,88405.0,88402.0,0.18421985]
[1740516578860,0.00855958,88432.0,88427.0,0.04728884]
[1740516579060,0.00012649,88431.0,88430.0,0.04728884]
[1740516579263,0.02511769,88431.0,88430.0,0.04728884]
[1740516579467,0.00012649,88431.0,88430.0,0.04728884]
[1740516579721,0.16974949,88431.0,88430.0,0.04728884]
[1740516579919,0.00012649,88431.0,88430.0,0.04728884]
[1740516580329,0.00012649,88431.0,88430.0,0.34520222]
[1740516580546,0.00012649,88431.0,88430.0,0.66930222]
[1740516581362,0.00012649,88431.0,88430.0,0.79380222]
[1740516582013,0.00012649,88431.0,88430.0,0.80080222]
[1740516582584,0.00012649,88431.0,88430.0,0.79380222]
[1740516583380,0.00012649,88431.0,88430.0,1.33040222]
[1740516583581,0.00867962,88480.0,88463.0,0.04728884]
[1740516583833,0.00211962,88479.0,88463.0,0.04728884]
[1740516584030,0.226077,88466.0,88463.0,0.04728884]
[1740516584192,0.22608,88465.0,88463.0,0.04728884]
[1740516584393,0.16956,88464.0,88463.0,0.04728884]
[1740516584618,0.02746214,88479.0,88467.0,0.04728884]
[1740516584847,0.169546,88472.0,88467.0,0.04728884]
[1740516585056,0.169552,88468.0,88467.0,0.04728884]
[1740516585703,0.226067,88470.0,88463.0,0.001]
[1740516585704,0.16956,88464.0,88463.0,0.001]
[1740516585902,0.46956,88464.0,88463.0,0.001]
[1740516586618,0.46956,88464.0,88426.0,0.04728884]
[1740516586619,0.3,88453.0,88426.0,0.04728884]
[1740516586864,0.169633,88426.0,88425.0,0.03100063]
[1740516587065,0.469633,88426.0,88425.0,0.03100063]
[1740516588174,0.169646,88419.0,88418.0,0.3241]
[1740516588379,0.169646,88419.0,88418.0,0.32422649]
[1740516590716,0.170646,88419.0,88418.0,0.32422649]
[1740516591060,0.470646,88419.0,88418.0,0.32422649]
[1740516591400,0.470646,88419.0,88418.0,0.00012649]
[1740516592558,0.470646,88419.0,88418.0,0.00097559]
[1740516593576,0.001,88419.0,88418.0,0.00097559]
[1740516595120,0.001,88419.0,88418.0,0.76239519]
[1740516595449,0.001,88419.0,88418.0,1.42071186]
[1740516595660,0.0946,88484.0,88443.0,0.04728884]
[1740516595788,0.226055,88475.0,88443.0,0.04728884]
[1740516595991,0.2277094,88493.0,88456.0,0.04728884]
[1740516595992,0.169547,88471.0,88456.0,0.04728884]
[1740516596195,0.0017014,88493.0,88456.0,0.04728884]
[1740516596196,0.02678526,88468.0,88467.0,0.169554]
[1740516596397,0.0016982,88468.0,88464.0,0.04728884]
[1740516596939,0.169563,88463.0,88457.0,0.3231]
[1740516597155,0.0016982,88468.0,88465.0,0.05054861]
[1740516597279,0.00212002,88468.0,88465.0,0.05054861]
[1740516597481,0.00312002,88468.0,88465.0,0.05054861]
[1740516598055,0.00212002,88468.0,88465.0,0.05054861]
[1740516598640,0.00212002,88468.0,88457.0,0.3231]
[1740516598641,0.00212002,88468.0,88466.0,0.01944171]
[1740516600088,0.00212002,88468.0,88465.0,0.001]
[1740516600444,0.05271116,88466.0,88432.0,0.3231]
[1740516600665,0.10212002,88468.0,88440.0,0.04728884]
[1740516600666,0.6293,88465.0,88440.0,0.04728884]
[1740516600866,0.00212002,88468.0,88462.0,0.04728884]
[1740516600867,0.00850917,88463.0,88462.0,0.04728884]
[1740516601269,0.00850917,88463.0,88462.0,0.49867722]
[1740516601480,0.00850917,88463.0,88462.0,0.54737722]
[1740516601653,0.00712002,88468.0,88462.0,0.54737722]
[1740516601654,0.00512002,88468.0,88467.0,0.04728884]
[1740516601861,0.00512002,88468.0,88462.0,0.3718]
[1740516602525,0.00512002,88468.0,88467.0,0.04628884]
[1740516602673,0.00212002,88468.0,88467.0,0.04628884]
[1740516602872,0.00212002,88468.0,88462.0,0.3718]
[1740516603072,0.002,88463.0,88462.0,0.3231]
[1740516603295,0.002,88463.0,88453.0,0.04628884]
[1740516603479,0.00212002,88468.0,88446.0,0.0485]
[1740516603688,0.00840517,88465.0,88462.0,0.001]
[1740516603885,0.00840517,88465.0,88446.0,0.04628884]
[1740516604110,0.00840517,88465.0,88444.0,0.3231]
[1740516604362,0.00840517,88465.0,88462.0,0.001]
[1740516604556,0.001,88463.0,88432.0,0.3231]
[1740516604760,0.001,88463.0,88445.0,0.04628884]
[1740516604975,0.001,88463.0,88432.0,0.3231]
[1740516605282,0.3,88462.0,88432.0,0.3231]
[1740516605479,0.001,88463.0,88432.0,0.3231]
[1740516605687,0.001,88463.0,88419.0,0.0008481]
[1740516605688,0.05039709,88450.0,88419.0,0.0008481]
[1740516606008,0.05039709,88445.0,88419.0,0.0008481]
[1740516606222,0.05039709,88432.0,88419.0,0.0008481]
[1740516606353,0.05039709,88431.0,88413.0,0.09933289]
[1740516606552,0.01037673,88418.0,88413.0,0.09933289]
[1740516606956,0.01037673,88418.0,88391.0,0.04960291]
[1740516606957,0.01037673,88418.0,88397.0,0.1]
[1740516607164,0.01037673,88418.0,88391.0,0.04960291]
[1740516607728,0.021628,88418.0,88391.0,0.04960291]
[1740516607924,0.026628,88418.0,88391.0,0.04960291]
[1740516608070,0.021628,88418.0,88391.0,0.04960291]
[1740516608487,0.026628,88418.0,88391.0,0.04960291]
[1740516608683,0.026628,88418.0,88397.0,0.1]
[1740516608938,0.026628,88418.0,88381.0,0.3231]
[1740516608939,0.026628,88418.0,88408.0,0.1]
[1740516609478,0.032628,88418.0,88408.0,0.1]
[1740516609620,0.032628,88418.0,88415.0,0.1]
[1740516609823,0.00506666,88418.0,88415.0,0.1]
[1740516610035,6.666e-05,88418.0,88417.0,0.14960291]
[1740516610199,0.01106666,88418.0,88417.0,0.14960291]
[1740516610396,0.01106666,88418.0,88417.0,0.04960291]
[1740516610635,6.666e-05,88418.0,88413.0,0.0492]
[1740516610835,6.666e-05,88418.0,88416.0,0.04960291]
[1740516611162,6.666e-05,88418.0,88403.0,0.1]
[1740516611373,6.666e-05,88418.0,88400.0,0.1]
[1740516611580,0.00506666,88418.0,88400.0,0.1]
[1740516612146,0.00506666,88418.0,88404.0,0.1]
[1740516612344,0.00506666,88418.0,88410.0,0.1]
[1740516612345,0.01106666,88418.0,88410.0,0.1]
[1740516612546,0.01106666,88418.0,88407.0,0.04960291]
[1740516612744,0.00506666,88418.0,88406.0,0.04960291]
[1740516612949,6.666e-05,88418.0,88395.0,0.3231]
[1740516613225,0.00506666,88418.0,88395.0,0.3231]
[1740516613431,0.00606666,88418.0,88395.0,0.3231]
[1740516613635,0.00106666,88418.0,88395.0,0.3231]
[1740516613843,0.00806666,88418.0,88395.0,0.3231]
[1740516614016,0.00406666,88418.0,88395.0,0.3231]
[1740516614476,0.3,88416.0,88380.0,0.1008499]
[1740516614678,0.00829865,88403.0,88380.0,0.0008499]
[1740516616646,0.6293,88414.0,88380.0,0.0008499]
[1740516616846,0.00864714,88397.0,88380.0,0.0008499]
[1740516617217,0.014,88403.0,88382.0,0.1]
[1740516617417,0.007,88403.0,88382.0,0.1]
[1740516617622,0.00869566,88399.0,88380.0,0.1008499]
[1740516617822,0.3433,88414.0,88382.0,0.1]
[1740516618029,0.3433,88414.0,88387.0,0.1]
[1740516618030,0.014,88414.0,88387.0,0.1]
[1740516618206,0.00833221,88411.0,88392.0,0.06531942]
[1740516618410,0.014,88414.0,88398.0,0.1]
[1740516618732,0.014,88414.0,88398.0,0.16531942]
[1740516618908,0.007,88414.0,88398.0,0.16531942]
[1740516619110,6.666e-05,88418.0,88398.0,0.16531942]
[1740516619316,0.014,88403.0,88402.0,0.1]
[1740516619553,0.007,88403.0,88402.0,0.1]
[1740516619781,0.00857054,88417.0,88402.0,0.1]
[1740516619977,0.007,88414.0,88402.0,0.1]
[1740516620589,0.00857054,88417.0,88402.0,0.1]
[1740516620789,0.003,88403.0,88402.0,0.1]
[1740516621162,0.005,88403.0,88402.0,0.16531942]
[1740516622137,0.002,88403.0,88402.0,0.2936078]
[1740516622295,0.005,88414.0,88402.0,0.2936078]
[1740516622494,0.005,88414.0,88413.0,0.06531942]
[1740516622695,0.005,88414.0,88413.0,0.16531942]
[1740516622897,6.666e-05,88418.0,88416.0,0.1]
[1740516623297,6.666e-05,88418.0,88417.0,0.1]
[1740516623498,6.666e-05,88418.0,88417.0,0.16531942]
[1740516623908,6.666e-05,88418.0,88417.0,0.091]
[1740516624274,6.666e-05,88418.0,88412.0,0.091]
[1740516624409,6.666e-05,88418.0,88417.0,0.06531942]
[1740516624597,0.00206666,88418.0,88412.0,0.091]
[1740516625006,0.00206666,88418.0,88405.0,0.3231]
[1740516625210,0.00206666,88418.0,88410.0,0.06531942]
[1740516625418,0.00206666,88418.0,88405.0,0.4141]
[1740516625873,0.00206666,88418.0,88408.0,0.06531942]
[1740516626031,0.00206666,88418.0,88405.0,0.4141]
[1740516626227,6.666e-05,88418.0,88408.0,0.06531942]
[1740516626495,0.00206666,88418.0,88408.0,0.06531942]
[1740516626697,0.00306666,88418.0,88408.0,0.06531942]
[1740516626850,0.00106666,88418.0,88408.0,0.06531942]
[1740516627075,0.00406666,88418.0,88408.0,0.06531942]
[1740516627281,0.00506666,88418.0,88394.0,0.091]
[1740516627477,0.00306666,88418.0,88393.0,0.0451]
[1740516627887,0.0086021,88409.0,88393.0,0.0451]
[1740516628297,0.0086021,88409.0,88400.0,0.06531942]
[1740516628699,0.0086021,88409.0,88393.0,0.0451]
[1740516629457,0.0086021,88409.0,88400.0,0.001]
[1740516630085,0.0086021,88409.0,88395.0,0.06531942]
[1740516630298,0.0086021,88409.0,88393.0,0.002]
[1740516630635,0.0086021,88409.0,88393.0,0.004]
[1740516631477,0.0086021,88409.0,88393.0,0.002]
[1740516631862,0.0086021,88409.0,88386.0,0.06531942]
[1740516632041,0.0086021,88409.0,88385.0,0.091]
[1740516632249,0.0086021,88409.0,88395.0,0.001]
[1740516632509,0.0156021,88409.0,88385.0,0.091]
[1740516632885,0.0216021,88409.0,88382.0,0.06531942]
[1740516633188,0.0156021,88409.0,88381.0,0.091]
[1740516633395,0.0216021,88409.0,88381.0,0.091]
[1740516633596,0.0146021,88409.0,88381.0,0.091]
[1740516633783,0.0086021,88409.0,88381.0,0.091]
[1740516634406,0.00834425,88386.0,88381.0,0.091]
[1740516634760,0.00834425,88386.0,88375.0,0.3231]
[1740516635435,0.00834425,88386.0,88378.0,0.06531942]
[1740516635590,0.00834425,88386.0,88380.0,0.00097639]
[1740516635789,0.00834425,88386.0,88381.0,0.002]
[1740516635985,0.00834425,88386.0,88381.0,0.001]
[1740516636185,0.0086021,88409.0,88389.0,0.091]
[1740516636414,0.0086021,88409.0,88390.0,0.06531942]
[1740516636777,0.0086021,88409.0,88389.0,0.091]
[1740516636983,0.0086021,88409.0,88390.0,0.06531942]
[1740516637696,0.0086021,88409.0,88395.0,0.091]
[1740516637900,0.0086021,88409.0,88396.0,0.06531942]
[1740516638100,0.0086021,88409.0,88398.0,0.091]
[1740516638317,0.0156021,88409.0,88398.0,0.091]
[1740516638908,0.0086021,88409.0,88398.0,0.091]
[1740516639328,0.0216021,88409.0,88398.0,0.091]
[1740516639803,0.007,88409.0,88405.0,0.091]
[1740516639988,0.007,88409.0,88407.0,0.15631942]
[1740516640188,0.005,88409.0,88408.0,0.091]
[1740516640494,0.005,88409.0,88397.0,0.3231]
[1740516640622,0.005,88409.0,88405.0,0.06531942]
[1740516641174,0.005,88409.0,88405.0,0.06544591]
[1740516641372,0.0016974,88418.0,88408.0,0.091]
[1740516641535,0.003,88409.0,88406.0,0.091]
[1740516641731,0.00857107,88417.0,88408.0,0.091]
[1740516641919,0.0016974,88418.0,88410.0,0.091]
[1740516642145,0.0016974,88418.0,88413.0,0.085]
[1740516642759,0.0016974,88418.0,88405.0,0.06544591]
[1740516642760,0.0016974,88418.0,88417.0,0.085]
[1740516642953,0.0016974,88418.0,88417.0,0.15031942]
[1740516643156,0.0016974,88418.0,88417.0,0.14531942]
[1740516643361,0.0046974,88418.0,88417.0,0.7216078]
[1740516644640,0.0016974,88418.0,88417.0,0.7216078]
[1740516644839,0.0016974,88418.0,88417.0,0.59331942]
[1740516645045,0.0036974,88418.0,88417.0,0.59331942]
[1740516645201,0.0066974,88418.0,88417.0,0.3705]
[1740516645542,0.0046974,88418.0,88417.0,0.51581942]
[1740516645744,0.0016974,88418.0,88417.0,0.43581942]
[1740516645978,0.0026974,88418.0,88417.0,0.007]
[1740516646331,0.0036974,88418.0,88417.0,0.01]
[1740516646497,0.0026974,88418.0,88405.0,0.06544591]
[1740516646705,0.0026974,88418.0,88405.0,0.00012649]
[1740516647963,0.0036974,88418.0,88417.0,0.005]
[1740516648469,0.0036974,88418.0,88405.0,0.00012649]
[1740516648873,0.0076974,88418.0,88405.0,0.00012649]
[1740516649492,0.0116974,88418.0,88405.0,0.00012649]
[1740516649797,0.0016974,88418.0,88406.0,0.08]
[1740516649950,0.0036974,88418.0,88406.0,0.08]
[1740516650374,0.00830639,88420.0,88405.0,0.00012649]
[1740516650375,0.00756252,88420.0,88405.0,0.00012649]
[1740516650952,0.004,88418.0,88405.0,0.00012649]
[1740516651395,0.00756252,88420.0,88405.0,0.00012649]
[1740516651598,0.01156252,88420.0,88405.0,0.00012649]
[1740516651995,0.004,88418.0,88405.0,0.00012649]
[1740516652312,0.007,88418.0,88407.0,0.08]
[1740516652450,0.00756252,88420.0,88407.0,0.08]
[1740516652653,0.3293,88441.0,88415.0,0.06531942]
[1740516652876,0.009,88420.0,88415.0,0.06531942]
[1740516653065,0.009,88420.0,88414.0,0.08]
[1740516653628,0.009,88420.0,88419.0,0.08]
[1740516654131,0.005,88420.0,88419.0,0.08]
[1740516655058,0.0217981,88425.0,88420.0,0.076]
[1740516655267,0.0217981,88425.0,88420.0,0.072]
[1740516655476,0.00849873,88443.0,88420.0,0.072]
[1740516655686,0.00849873,88443.0,88426.0,0.072]
[1740516655885,0.00849873,88443.0,88420.0,0.13731942]
[1740516656435,0.00849873,88443.0,88418.0,0.0452]
[1740516656637,0.00849873,88443.0,88415.0,0.0008486]
[1740516656638,0.0758,88442.0,88409.0,0.3231]
[1740516656856,0.01469793,88441.0,88426.0,0.001]
[1740516657262,0.028,88437.0,88395.0,0.10332991]
[1740516657473,0.3,88439.0,88400.0,0.06531942]
[1740516657671,0.3,88439.0,88403.0,0.072]
[1740516658310,0.3,88439.0,88400.0,0.06531942]
[1740516658627,0.007,88437.0,88405.0,0.00112649]
[1740516658769,0.3,88439.0,88405.0,0.00012649]
[1740516658970,0.00855537,88410.0,88405.0,0.00112649]
[1740516659968,0.00855537,88410.0,88405.0,0.00212649]
[1740516660172,0.3,88435.0,88405.0,0.00212649]
[1740516660418,0.3,88435.0,88414.0,0.072]
[1740516660833,0.007,88439.0,88417.0,0.072]
[1740516661365,0.007,88439.0,88420.0,0.06531942]
[1740516661592,0.0011447,88442.0,88420.0,0.06531942]
[1740516661762,0.007,88435.0,88420.0,0.06531942]
[1740516661973,0.00833748,88426.0,88406.0,0.39479875]
[1740516662112,0.00833748,88426.0,88410.0,0.06531942]
[1740516662308,0.00833748,88426.0,88411.0,0.06531942]
[1740516662508,0.00833748,88426.0,88417.0,0.072]
[1740516662715,0.00833748,88426.0,88410.0,0.06531942]
[1740516662920,0.3,88447.0,88406.0,0.32279875]
[1740516663137,0.00855028,88413.0,88406.0,0.32279875]
[1740516663346,0.00855028,88413.0,88405.0,0.00012649]
[1740516663582,0.00855028,88413.0,88406.0,0.1]
[1740516664740,0.00855028,88413.0,88405.0,0.00212649]
[1740516664911,0.00855028,88413.0,88393.0,0.0008486]
[1740516665078,0.00855028,88413.0,88406.0,0.001]
[1740516665723,0.00855028,88413.0,88406.0,0.003]
[1740516666102,0.00867541,88426.0,88406.0,0.001]
[1740516666315,0.00867541,88426.0,88414.0,0.1]
[1740516666520,0.00867541,88426.0,88417.0,0.093]
[1740516666682,0.00867541,88426.0,88418.0,0.093]
[1740516666882,0.3293,88450.0,88418.0,0.188]
[1740516667087,0.03293,88450.0,88418.0,0.188]
[1740516667336,0.007,88426.0,88418.0,0.188]
[1740516667500,0.008,88426.0,88418.0,0.188]
[1740516667716,0.007,88426.0,88425.0,0.188]
[1740516667942,0.007,88426.0,88425.0,0.30174753]
[1740516668166,0.007,88426.0,88425.0,0.39238838]
[1740516669159,0.10234392,88450.0,88438.0,0.1]
[1740516669336,0.10276555,88450.0,88438.0,0.1]
[1740516669757,0.10976555,88450.0,88440.0,0.086]
[1740516669966,0.0016966,88447.0,88440.0,0.086]
[1740516671167,0.0016966,88447.0,88440.0,0.186]
[1740516671367,0.0016966,88447.0,88441.0,0.1]
[1740516672196,0.0016966,88447.0,88440.0,0.001]
[1740516672403,0.0016966,88447.0,88440.0,0.187]
[1740516672605,0.0016966,88447.0,88446.0,0.486]
[1740516672804,0.0016982,88468.0,88466.0,0.086]
[1740516673005,0.02209303,88467.0,88466.0,0.1689]
[1740516673208,0.02221947,88467.0,88460.0,0.1]
[1740516673530,0.02221947,88467.0,88460.0,0.086]
[1740516673731,0.02221947,88467.0,88464.0,0.1]
[1740516673918,0.02221947,88467.0,88466.0,0.186]
[1740516674122,0.02221947,88467.0,88466.0,0.188]
[1740516675312,0.02221947,88467.0,88466.0,0.1]
[1740516675518,0.02221947,88467.0,88460.0,0.006]
[1740516675779,0.02221947,88467.0,88466.0,0.1]
[1740516675970,0.02221947,88467.0,88466.0,0.186]
[1740516676180,0.02221947,88467.0,88466.0,0.193]
[1740516676342,0.02221947,88467.0,88466.0,0.086]
[1740516676545,0.02221947,88467.0,88466.0,0.007]
[1740516676749,0.02221947,88467.0,88466.0,0.107]
[1740516677176,0.02221947,88467.0,88458.0,0.42279875]
[1740516677527,0.169598,88444.0,88443.0,0.2651]
[1740516677713,0.169595,88446.0,88445.0,0.086]
[1740516677840,0.169595,88446.0,88445.0,0.186]
[1740516678441,0.169595,88446.0,88445.0,0.086]
[1740516678695,0.1696,88443.0,88442.0,0.0468]
[1740516678891,0.169608,88439.0,88438.0,0.1]
[1740516679209,0.001,88446.0,88438.0,0.1]
[1740516679403,0.001,88446.0,88445.0,0.093]
[1740516679637,0.169595,88446.0,88445.0,0.086]
[1740516679873,0.169577,88455.0,88454.0,0.086]
[1740516680065,0.169577,88455.0,88454.0,0.085]
[1740516681221,0.226106,88454.0,88445.0,0.007]
[1740516681475,0.169595,88446.0,88445.0,0.192]
[1740516681681,0.170595,88446.0,88445.0,0.098]
[1740516681883,0.170595,88446.0,88445.0,0.191]
[1740516682114,0.170595,88446.0,88445.0,0.185]
[1740516682307,0.169595,88446.0,88445.0,0.085]
[1740516682515,0.169595,88446.0,88445.0,0.088]
[1740516682726,0.169595,88446.0,88445.0,0.188]
[1740516682935,0.169595,88446.0,88445.0,0.192]
[1740516683333,0.170595,88446.0,88445.0,0.198]
[1740516683906,0.001,88446.0,88445.0,0.86678313]
[1740516684115,0.001,88446.0,88445.0,0.94778313]
[1740516684322,0.001,88446.0,88445.0,0.96720704]
[1740516684531,0.001,88446.0,88445.0,0.94778313]
[1740516684734,0.00012642,88458.0,88457.0,0.654573]
[1740516684941,0.00012642,88458.0,88457.0,1.78696013]
[1740516685432,0.0016962,88467.0,88466.0,0.785256]
[1740516685704,0.0016962,88467.0,88466.0,1.86345418]
[1740516686009,0.0016954,88506.0,88491.0,0.354508]
[1740516686148,0.0016954,88506.0,88491.0,1.44450618]
[1740516686351,0.00182699,88492.0,88491.0,1.32129818]
[1740516686590,0.00182699,88492.0,88491.0,0.95420618]
[1740516687000,0.0016954,88506.0,88505.0,0.36902185]
[1740516687202,0.0017014,88510.0,88508.0,0.354476]
[1740516687402,0.10134392,88537.0,88508.0,1.64216313]
[1740516687607,0.10134392,88537.0,88519.0,1.14433143]
[1740516687608,0.00182237,88520.0,88519.0,1.14433143]
[1740516687820,0.00182237,88520.0,88519.0,1.19163143]
[1740516688821,0.19758263,88548.0,88520.0,0.31454085]
[1740516689021,0.02001855,88548.0,88547.0,0.185]
[1740516689245,0.18941755,88548.0,88547.0,0.185]
[1740516689399,0.02001855,88548.0,88547.0,0.185]
[1740516689603,0.16982014,88548.0,88547.0,0.185]
[1740516689800,0.16982014,88548.0,88547.0,0.1]
[1740516690086,0.16982014,88548.0,88547.0,0.185]
[1740516690637,0.16982014,88548.0,88547.0,0.189]
[1740516691206,0.16982014,88548.0,88547.0,0.004]
[1740516691323,0.46982014,88548.0,88547.0,1e-06]
[1740516691525,0.169441,88526.0,88525.0,0.185]
[1740516691734,0.169436,88529.0,88528.0,0.185]
[1740516691974,0.169416,88539.0,88538.0,0.085]
[1740516692186,0.00848545,88555.0,88545.0,0.1]
[1740516692395,0.00012629,88555.0,88552.0,0.183]
[1740516692595,0.16939,88553.0,88552.0,0.183]
[1740516693475,0.02033824,88555.0,88554.0,0.1]
[1740516693682,0.02033824,88555.0,88554.0,0.183]
[1740516694084,0.18972424,88555.0,88554.0,0.183]
[1740516695093,0.18972424,88555.0,88554.0,0.18259438]
[1740516695333,0.18972424,88555.0,88554.0,0.005]
[1740516695511,0.16939,88553.0,88552.0,0.001]
[1740516695900,0.16929354,88553.0,88552.0,0.001]
[1740516696491,0.169416,88539.0,88538.0,0.50039313]
[1740516696901,0.169416,88539.0,88538.0,0.07759438]
[1740516697072,0.02033824,88555.0,88526.0,0.07759438]
[1740516697258,0.169439,88527.0,88526.0,0.07759438]
[1740516697456,0.169447,88523.0,88522.0,0.07759438]
[1740516697716,0.169447,88523.0,88522.0,0.17759438]
[1740516698243,0.169462,88515.0,88514.0,0.17759438]
[1740516698356,0.225935,88521.0,88520.0,0.07759438]
[1740516698357,0.169451,88521.0,88520.0,0.07759438]
[1740516699379,0.20080878,88522.0,88519.0,0.07759438]
[1740516699559,0.169451,88521.0,88520.0,0.003]
[1740516699771,0.169453,88520.0,88519.0,0.07759438]
[1740516699968,0.169453,88520.0,88519.0,0.07259438]
[1740516700552,0.20080878,88522.0,88518.0,0.1]
[1740516700885,0.169455,88519.0,88518.0,0.17259438]
[1740516701301,0.469462,88515.0,88514.0,0.00042114]
[1740516701437,0.3,88506.0,88500.0,0.1]
[1740516701649,0.3,88506.0,88500.0,0.00012637]
[1740516701850,0.469489,88501.0,88500.0,0.00012637]
[1740516702273,0.469489,88501.0,88489.0,0.07259438]
[1740516702274,0.3,88495.0,88489.0,0.07259438]
[1740516702493,0.469499,88496.0,88495.0,0.07259438]
[1740516702689,0.48917906,88496.0,88495.0,0.07259438]
[1740516703469,0.48917906,88496.0,88495.0,0.07059438]
[1740516704125,0.48917906,88496.0,88495.0,0.07159438]
[1740516704916,0.48917906,88496.0,88495.0,0.07059438]
[1740516705122,0.48917906,88496.0,88495.0,0.07228898]
[1740516705319,0.48917906,88496.0,88495.0,0.0016946]
[1740516706147,0.48917906,88496.0,88495.0,0.0026946]
[1740516706312,0.48917906,88496.0,88495.0,0.0016946]
[1740516706720,0.48917906,88496.0,88495.0,0.0026946]
[1740516707358,0.49017906,88496.0,88495.0,0.0026946]
[1740516707567,0.48917906,88496.0,88495.0,0.0016946]
[1740516707763,0.49217906,88496.0,88495.0,0.0016946]
[1740516708421,0.49017906,88496.0,88495.0,0.0016946]
[1740516708629,0.49217906,88496.0,88495.0,0.0016946]
[1740516710284,0.49217906,88496.0,88495.0,0.07228898]
[1740516710859,0.49017906,88496.0,88495.0,0.07228898]
[1740516711212,0.49017906,88496.0,88495.0,0.07428898]
[1740516711593,0.49017906,88496.0,88495.0,0.07228898]
[1740516711995,0.48917906,88496.0,88495.0,0.07528898]
[1740516713195,0.48917906,88496.0,88495.0,0.0046946]
[1740516713438,0.48917906,88496.0,88495.0,0.0086946]
[1740516714994,0.01968006,88496.0,88495.0,0.17928898]
[1740516715397,0.3293,88551.0,88513.0,0.07059438]
[1740516715597,0.169432,88531.0,88530.0,0.1]
[1740516715929,0.169432,88531.0,88522.0,0.17059438]
[1740516715930,0.01961598,88531.0,88522.0,0.17059438]
[1740516716102,0.169455,88519.0,88518.0,0.17059438]
[1740516716692,0.469441,88526.0,88525.0,0.07059438]
[1740516716866,0.169441,88526.0,88525.0,0.07059438]
[1740516717555,0.3,88527.0,88522.0,0.07059438]
[1740516717743,0.169455,88519.0,88518.0,0.003]
[1740516717946,0.16946,88516.0,88515.0,0.32279875]
[1740516718292,0.16946,88516.0,88515.0,0.39339313]
[1740516718495,0.16946,88516.0,88515.0,0.49339313]
[1740516718722,0.169455,88519.0,88518.0,0.17059438]
[1740516718928,0.3,88533.0,88525.0,0.07059438]
[1740516719136,0.469439,88527.0,88526.0,0.07059438]
[1740516719337,0.169439,88527.0,88526.0,0.17059438]
[1740516719533,0.469422,88536.0,88535.0,0.07059438]
[1740516719950,0.3,88536.0,88535.0,0.07059438]
[1740516720157,0.00012635,88538.0,88537.0,0.17059438]
[1740516720356,0.00012635,88538.0,88537.0,0.79110151]
[1740516720694,0.00012635,88538.0,88537.0,0.62168151]
[1740516720850,0.16954435,88538.0,88537.0,0.42079875]
[1740516721053,0.16954435,88538.0,88537.0,0.39139313]
[1740516721258,0.00012635,88538.0,88532.0,0.07059438]
[1740516721458,0.16954435,88538.0,88537.0,0.014]
[1740516721665,0.00012635,88538.0,88537.0,0.18459438]
[1740516721841,0.16954435,88538.0,88537.0,0.18459438]
[1740516722047,0.16679511,88538.0,88537.0,0.114]
[1740516722245,0.16679511,88538.0,88537.0,0.014]
[1740516722446,0.16679511,88538.0,88537.0,0.114]
[1740516722675,0.3,88542.0,88541.0,0.07059438]
[1740516722985,0.46983214,88542.0,88541.0,0.07059438]
[1740516723391,0.00042114,88542.0,88541.0,0.17059438]
[1740516723687,0.00042114,88542.0,88541.0,0.49139313]
[1740516724046,0.00042114,88542.0,88541.0,0.86699451]
[1740516724448,0.3293,88609.0,88551.0,0.33998738]
[1740516724647,0.01943175,88578.0,88551.0,1.01034906]
[1740516724855,0.3293,88609.0,88584.0,0.17059438]
[1740516725097,0.225736,88599.0,88584.0,0.17059438]
[1740516725267,0.0206756,88585.0,88584.0,0.17059438]
[1740516725455,0.00097319,88585.0,88584.0,0.17059438]
[1740516725651,0.00097319,88585.0,88584.0,0.17217463]
[1740516726025,0.17030119,88585.0,88584.0,0.07059438]